bitfinex/quotes_BTCUSD_20250109
["timestamp","ask_amount","ask_price","bid_price","bid_amount"]
[1736425470021,0.023,93815.0,93804.0,0.0792]
[1736425470223,0.023,93815.0,93804.0,0.0802]
[1736425470481,0.023,93815.0,93804.0,0.0792]
[1736425471417,0.023,93813.0,93805.0,0.001]
[1736425471783,0.023,93811.0,93805.0,0.001]
[1736425471895,0.023,93811.0,93804.0,0.0792]
[1736425472106,0.023,93811.0,93804.0,0.0802]
[1736425472536,0.023,93809.0,93804.0,0.0802]
[1736425472743,0.023,93809.0,93804.0,0.001]
[1736425473132,0.023,93811.0,93805.0,0.001]
[1736425473509,0.023,93809.0,93805.0,0.001]
[1736425473650,0.023,93809.0,93804.0,0.001]
[1736425474071,0.023,93811.0,93803.0,0.0076]
[1736425474273,0.023,93811.0,93805.0,0.002]
[1736425474677,0.023,93811.0,93803.0,0.0076]
[1736425474919,0.023,93811.0,93804.0,0.003]
[1736425475364,0.023,93811.0,93804.0,0.001]
[1736425475589,0.02286459,93811.0,93804.0,0.001]
[1736425475758,0.02286459,93811.0,93805.0,0.002]
[1736425476199,0.02277858,93811.0,93805.0,0.002]
[1736425476959,0.03496233,93811.0,93805.0,0.001]
[1736425477817,0.03496233,93811.0,93805.0,0.003]
[1736425477994,0.01218375,93811.0,93805.0,0.003]
[1736425478188,0.023,93811.0,93805.0,0.003]
[1736425478373,0.023,93811.0,93805.0,0.002]
[1736425478629,0.023,93811.0,93805.0,0.001]
[1736425478990,0.023,93811.0,93805.0,0.003]
[1736425480328,0.22532012,93812.0,93805.0,0.001]
[1736425480739,0.023,93811.0,93805.0,0.003]
[1736425481306,0.023,93811.0,93805.0,0.002]
[1736425481516,0.023,93811.0,93803.0,0.0076]
[1736425481763,0.023,93811.0,93805.0,0.002]
[1736425482173,0.02273775,93811.0,93803.0,0.0076]
[1736425482605,0.02273775,93811.0,93805.0,0.001]
[1736425483184,0.213196,93810.0,93803.0,0.0076]
[1736425483522,0.213196,93810.0,93805.0,0.002]
[1736425484357,0.023,93809.0,93803.0,0.0076]
[1736425484596,0.023,93807.0,93803.0,0.001]
[1736425484802,0.023,93805.0,93803.0,0.001]
[1736425485029,0.213205,93806.0,93805.0,0.003]
[1736425485204,0.213205,93806.0,93803.0,0.001]
[1736425485439,0.01168304,93810.0,93788.0,0.0076]
[1736425485440,0.023,93801.0,93788.0,0.0076]
[1736425485848,0.023,93799.0,93788.0,0.0076]
[1736425486189,0.023,93797.0,93788.0,0.0076]
[1736425486378,0.023,93799.0,93789.0,0.0076]
[1736425486600,0.023,93795.0,93789.0,0.0076]
[1736425486811,0.023,93793.0,93787.0,0.0856]
[1736425487164,0.023,93795.0,93787.0,0.0856]
[1736425487635,0.023,93799.0,93787.0,0.0856]
[1736425488196,0.02271731,93799.0,93787.0,0.0856]
[1736425488405,0.213234,93794.0,93787.0,0.0876]
[1736425488599,0.213234,93794.0,93787.0,0.0856]
[1736425489012,0.213234,93794.0,93787.0,0.0866]
[1736425489216,0.213234,93794.0,93787.0,0.0876]
[1736425489387,0.213222,93799.0,93787.0,0.0866]
[1736425489821,0.213222,93799.0,93787.0,0.0876]
[1736425490354,0.213222,93799.0,93787.0,0.001]
[1736425490355,0.023,93793.0,93787.0,0.001]
[1736425490567,0.023,93791.0,93787.0,0.001]
[1736425490773,0.023,93789.0,93787.0,0.001]
[1736425491184,0.023,93789.0,93784.0,0.0076]
[1736425491185,0.023,93787.0,93784.0,0.0076]
[1736425491605,0.023,93785.0,93784.0,0.0076]
[1736425492010,0.023,93785.0,93784.0,0.00789255]
[1736425492603,0.023,93785.0,93784.0,0.01089255]
[1736425492973,0.023,93785.0,93784.0,0.00029255]
[1736425493248,0.0679488,93785.0,93784.0,0.00029255]
[1736425493663,0.023,93785.0,93784.0,0.00029255]
[1736425493867,0.023,93785.0,93784.0,0.00129255]
[1736425494382,0.023,93785.0,93784.0,0.00429255]
[1736425494837,0.023,93785.0,93784.0,0.00029255]
[1736425495249,0.0351089,93785.0,93784.0,0.00029255]
[1736425495863,0.0351089,93785.0,93784.0,0.00129255]
[1736425496384,0.0351089,93785.0,93784.0,0.08179255]
[1736425496801,0.03485118,93785.0,93784.0,0.08179255]
[1736425497772,0.03485118,93785.0,93784.0,0.08079255]
[1736425498612,0.03485118,93785.0,93784.0,0.08179255]
[1736425499034,0.03485118,93785.0,93784.0,0.08079255]
[1736425499357,0.03485118,93785.0,93784.0,0.08479255]
[1736425500259,0.03485118,93785.0,93784.0,0.08579255]
[1736425501119,0.03485118,93785.0,93784.0,0.08479255]
[1736425501326,0.03485118,93785.0,93784.0,0.08079255]
[1736425501530,0.15,93804.0,93784.0,0.08079255]
[1736425501531,0.213206,93806.0,93793.0,0.0821]
[1736425501948,0.213214,93803.0,93793.0,0.0821]
[1736425502559,0.023,93802.0,93793.0,0.0821]
[1736425502779,0.023,93800.0,93794.0,0.0076]
[1736425503494,0.023,93802.0,93794.0,0.0076]
[1736425503895,0.213214,93803.0,93794.0,0.0076]
[1736425503896,0.023,93803.0,93794.0,0.0076]
[1736425504658,0.023,93801.0,93794.0,0.0076]
[1736425505907,0.01968318,93801.0,93794.0,0.0086]
[1736425507339,0.01968318,93801.0,93794.0,0.221832]
[1736425507613,0.01968318,93801.0,93794.0,0.0086]
[1736425509295,0.023,93803.0,93794.0,0.0086]
[1736425509662,0.09461056,93803.0,93794.0,0.0086]
[1736425510298,0.023,93801.0,93794.0,0.0086]
[1736425510479,0.023,93801.0,93795.0,0.0076]
[1736425510680,0.07161056,93803.0,93795.0,0.0076]
[1736425510681,0.03909987,93803.0,93795.0,0.0076]
[1736425510916,0.21321,93804.0,93795.0,0.0076]
[1736425511139,0.213218,93801.0,93793.0,0.0821]
[1736425511353,0.213226,93798.0,93793.0,0.0821]
[1736425511566,0.213226,93797.0,93794.0,0.0086]
[1736425511978,0.213226,93797.0,93794.0,0.0076]
[1736425512180,0.213226,93798.0,93792.0,0.0076]
[1736425512616,0.213226,93798.0,93789.0,0.213244]
[1736425512906,0.023,93797.0,93794.0,0.003]
[1736425513317,0.023,93797.0,93790.0,0.0076]
[1736425513521,0.213217,93801.0,93790.0,0.0076]
[1736425513522,0.023,93800.0,93790.0,0.0076]
[1736425513728,0.023,93800.0,93791.0,0.078]
[1736425513929,0.023,93798.0,93791.0,0.078]
[1736425515085,0.023,93798.0,93792.0,0.002]
[1736425515306,0.023,93798.0,93791.0,0.078]
[1736425515753,0.023,93798.0,93791.0,0.081]
[1736425515930,0.023,93798.0,93791.0,0.078]
[1736425516081,0.023,93796.0,93791.0,0.078]
[1736425516288,0.023,93796.0,93792.0,0.0106]
[1736425516515,0.023,93796.0,93793.0,0.0076]
[1736425516516,0.023,93794.0,93793.0,0.0076]
[1736425516922,0.02287167,93794.0,93793.0,0.0076]
[1736425517942,0.03457634,93794.0,93793.0,0.0076]
[1736425518915,0.03457634,93794.0,93793.0,0.0096]
[1736425519129,0.03411108,93794.0,93793.0,0.0076]
[1736425519482,0.03611108,93794.0,93793.0,0.0076]
[1736425519890,0.03411108,93794.0,93788.0,0.0076]
[1736425520070,0.03411108,93794.0,93793.0,0.001]
[1736425520267,0.03411108,93794.0,93793.0,0.002]
[1736425520684,0.03411108,93794.0,93793.0,0.001]
[1736425522459,0.03411108,93794.0,93793.0,0.0811]
[1736425522943,0.1056568,93794.0,93793.0,0.002]
[1736425523759,0.03231079,93794.0,93793.0,0.002]
[1736425525653,0.023,93792.0,93790.0,0.0076]
[1736425526817,0.023,93792.0,93790.0,0.0086]
[1736425528011,0.23624,93791.0,93790.0,0.0086]
[1736425528416,0.23624,93791.0,93790.0,0.003]
[1736425528822,0.23624,93791.0,93790.0,0.001]
[1736425529054,0.213253,93785.0,93784.0,0.00029255]
[1736425529253,0.236253,93785.0,93784.0,0.00029255]
[1736425530452,0.237253,93785.0,93784.0,0.00029255]
[1736425532014,0.387253,93785.0,93784.0,0.00029255]
[1736425532220,0.386253,93785.0,93784.0,0.00029255]
[1736425532627,0.387253,93785.0,93784.0,0.00029255]
[1736425532784,0.49055276,93785.0,93784.0,0.00029255]
[1736425533122,0.49155276,93785.0,93784.0,0.00029255]
[1736425533335,0.59585252,93785.0,93784.0,0.00029255]
[1736425533520,0.59485252,93785.0,93784.0,0.00029255]
[1736425534044,0.59785252,93785.0,93784.0,0.00029255]
[1736425534239,0.59485252,93785.0,93784.0,0.00029255]
[1736425534451,0.69485252,93785.0,93784.0,0.00029255]
[1736425534648,1.16505252,93785.0,93784.0,0.00029255]
[1736425534815,1.24085252,93785.0,93784.0,0.00029255]
[1736425534990,1.24085252,93785.0,93784.0,1e-08]
[1736425535191,0.389071,93777.0,93776.0,0.00013041]
[1736425535448,2.74564841,93777.0,93776.0,0.0001942]
[1736425535669,0.70989141,93777.0,93776.0,0.0001942]
[1736425535872,2.74564841,93777.0,93776.0,0.0001942]
[1736425536272,2.75143495,93777.0,93776.0,0.0001942]
[1736425536673,0.363294,93767.0,93765.0,0.0001704]
[1736425536882,0.4309517,93767.0,93766.0,0.00031995]
[1736425537081,0.4539517,93767.0,93766.0,0.00031995]
[1736425538506,0.4539517,93767.0,93755.0,0.0001704]
[1736425538507,0.363383,93728.0,93709.0,0.4217966]
[1736425538720,0.363383,93728.0,93726.0,0.07301129]
[1736425538721,0.213383,93728.0,93726.0,0.07301129]
[1736425538966,0.213383,93728.0,93727.0,6.376e-05]
[1736425539203,0.47046086,93728.0,93727.0,6.376e-05]
[1736425539948,0.47246086,93728.0,93727.0,6.376e-05]
[1736425540585,0.47046086,93728.0,93727.0,6.376e-05]
[1736425540774,0.47246086,93728.0,93727.0,6.376e-05]
[1736425541687,0.47746086,93728.0,93727.0,6.376e-05]
[1736425542094,0.48866701,93728.0,93727.0,6.376e-05]
[1736425542536,0.48366701,93728.0,93727.0,6.376e-05]
[1736425542762,0.48166701,93728.0,93727.0,6.376e-05]
[1736425543018,0.24758915,93728.0,93727.0,6.376e-05]
[1736425543187,0.001,93728.0,93727.0,0.12786376]
[1736425543389,0.001,93728.0,93727.0,0.34884876]
[1736425543568,0.15,93742.0,93731.0,0.213375]
[1736425543772,0.01153915,93739.0,93735.0,0.213365]
[1736425543979,0.01153915,93739.0,93732.0,0.213372]
[1736425544388,0.023,93738.0,93732.0,0.213372]
[1736425544918,0.236362,93738.0,93727.0,0.14446376]
[1736425545072,0.023,93741.0,93727.0,0.13846376]
[1736425545273,0.213366,93736.0,93727.0,0.13846376]
[1736425545501,0.213369,93734.0,93727.0,0.13846376]
[1736425545870,0.023,93733.0,93732.0,0.002]
[1736425546379,0.023,93735.0,93732.0,0.003]
[1736425546790,0.023,93735.0,93732.0,0.002]
[1736425547233,0.08312857,93735.0,93731.0,0.0076]
[1736425547531,0.02274228,93735.0,93731.0,0.0076]
[1736425547889,0.213369,93734.0,93727.0,0.12786376]
[1736425548093,0.03526543,93740.0,93728.0,0.0076]
[1736425548288,0.001,93735.0,93728.0,0.0076]
[1736425548490,0.213378,93731.0,93728.0,0.0076]
[1736425549130,0.213369,93734.0,93727.0,0.12786376]
[1736425550438,0.023,93733.0,93727.0,0.12786376]
[1736425552364,0.023,93728.0,93727.0,0.12786376]
[1736425553373,0.0679744,93728.0,93727.0,0.12786376]
[1736425553778,0.2813574,93728.0,93727.0,0.12786376]
[1736425554204,0.0679744,93728.0,93727.0,0.13086376]
[1736425554592,0.0679744,93728.0,93727.0,0.12886376]
[1736425554815,0.2813574,93728.0,93727.0,0.00206376]
[1736425555014,0.4313574,93728.0,93727.0,0.00206376]
[1736425555308,0.44260209,93728.0,93727.0,0.00106376]
[1736425555519,0.44260209,93728.0,93727.0,0.00206376]
[1736425555734,0.44260209,93728.0,93727.0,0.00106376]
[1736425556117,0.44260209,93728.0,93727.0,0.00206376]
[1736425556744,0.44260209,93728.0,93727.0,6.376e-05]
[1736425557564,0.44360209,93728.0,93727.0,6.376e-05]
[1736425557779,0.44260209,93728.0,93727.0,6.376e-05]
[1736425562049,0.03398292,93728.0,93727.0,6.376e-05]
[1736425564506,0.03398292,93728.0,93727.0,0.00206376]
[1736425572536,0.02273823,93728.0,93727.0,0.00206376]
[1736425572741,0.213318,93757.0,93734.0,0.0473]
[1736425572952,0.213324,93754.0,93740.0,0.213354]
[1736425573162,0.213324,93754.0,93743.0,0.213347]
[1736425573401,0.213319,93756.0,93745.0,0.213344]
[1736425573599,0.213315,93758.0,93745.0,0.213344]
[1736425573818,0.535414,93759.0,93749.0,0.213333]
[1736425574021,0.011,93749.0,93746.0,0.213342]
[1736425574402,0.023,93748.0,93746.0,0.213342]
[1736425576728,0.023,93762.0,93744.0,0.0825]
[1736425576935,0.213308,93761.0,93752.0,0.213328]
[1736425577374,0.04266983,93761.0,93753.0,0.213326]
[1736425577580,0.213305,93763.0,93752.0,0.213328]
[1736425577581,0.213305,93763.0,93754.0,0.0493]
[1736425577789,0.023,93762.0,93755.0,0.213321]
[1736425578387,0.006,93761.0,93755.0,0.213321]
[1736425578588,0.023,93760.0,93754.0,0.0493]
[1736425578996,0.002,93762.0,93755.0,0.213321]
[1736425579293,0.023,93764.0,93755.0,0.213321]
[1736425579534,0.236306,93762.0,93754.0,0.0493]
[1736425579738,0.023,93760.0,93755.0,0.213321]
[1736425580178,0.0230853,93766.0,93755.0,0.213321]
[1736425580357,0.023,93761.0,93755.0,0.213321]
[1736425580508,0.023,93761.0,93756.0,0.213319]
[1736425581889,0.023,93761.0,93756.0,0.21338276]
[1736425582123,0.029,93761.0,93756.0,0.21438276]
[1736425582616,0.023,93759.0,93756.0,0.21438276]
[1736425583214,0.006,93761.0,93756.0,0.21438276]
[1736425583343,0.008,93761.0,93756.0,0.21438276]
[1736425583564,0.008,93761.0,93756.0,0.00106376]
[1736425583921,0.023,93759.0,93756.0,6.376e-05]
[1736425584078,0.04607744,93759.0,93756.0,6.376e-05]
[1736425584404,0.006,93759.0,93756.0,6.376e-05]
[1736425584559,0.001,93759.0,93756.0,6.376e-05]
[1736425584996,0.001,93759.0,93756.0,0.00106376]
[1736425585174,0.001,93759.0,93756.0,6.376e-05]
[1736425585648,0.023,93758.0,93756.0,6.376e-05]
[1736425586061,0.023,93758.0,93755.0,0.21948517]
[1736425586868,0.024,93758.0,93755.0,0.21948517]
[1736425587049,0.001,93758.0,93755.0,0.21948517]
[1736425587259,0.005,93758.0,93755.0,0.21948517]
[1736425587450,0.004,93758.0,93755.0,0.21948517]
[1736425587636,0.023,93762.0,93755.0,0.21948517]
[1736425587838,0.004,93758.0,93755.0,0.21948517]
[1736425588793,0.005,93758.0,93755.0,0.21948517]
[1736425589109,0.005,93758.0,93755.0,0.00616517]
[1736425589909,0.023,93756.0,93755.0,0.00616517]
[1736425590947,0.026,93756.0,93755.0,0.00616517]
[1736425592135,0.027,93756.0,93755.0,0.00616517]
[1736425593542,0.027,93756.0,93754.0,0.0493]
[1736425593543,0.023,93755.0,93736.0,0.0486]
[1736425593766,0.023,93755.0,93740.0,0.0076]
[1736425593939,0.023,93747.0,93740.0,0.0076]
[1736425594138,0.213342,93746.0,93740.0,0.0076]
[1736425594348,0.023,93745.0,93740.0,0.0076]
[1736425594567,0.023,93743.0,93740.0,0.0076]
[1736425594746,0.023,93743.0,93737.0,0.0827]
[1736425595091,0.0679688,93743.0,93737.0,0.0827]
[1736425595627,0.023,93748.0,93738.0,0.21336]
[1736425595909,0.236338,93748.0,93737.0,0.0827]
[1736425596347,0.2360971,93748.0,93737.0,0.0827]
[1736425596925,0.2360971,93748.0,93740.0,0.001]
[1736425597099,0.2360971,93748.0,93737.0,0.296062]
[1736425597642,0.21334,93747.0,93737.0,0.296062]
[1736425597849,0.0640004,93747.0,93737.0,0.0751]
[1736425598055,0.0640004,93747.0,93738.0,0.0076]
[1736425598276,0.01104831,93756.0,93738.0,0.0076]
[1736425598497,0.15,93759.0,93738.0,0.0076]
[1736425598498,0.023,93742.0,93738.0,0.0076]
[1736425598676,0.023,93742.0,93736.0,0.0001498]
[1736425600159,0.023,93745.0,93737.0,0.001]
[1736425600393,0.023,93745.0,93736.0,0.0001498]
[1736425600394,0.023,93745.0,93742.0,0.0803]
[1736425600798,0.023,93750.0,93743.0,0.213349]
[1736425601236,0.023,93750.0,93742.0,0.0803]
[1736425601429,0.002,93745.0,93742.0,0.0803]
[1736425601723,0.023,93750.0,93742.0,0.0803]
[1736425601951,0.023,93752.0,93743.0,0.213349]
[1736425602156,0.001,93750.0,93743.0,0.0465]
[1736425602372,0.001,93750.0,93747.0,0.213339]
[1736425602584,0.001,93750.0,93749.0,0.213335]
[1736425602785,0.001,93750.0,93749.0,0.291835]
[1736425603276,0.001,93750.0,93749.0,0.39613476]
[1736425603713,8.53e-05,93766.0,93757.0,0.213317]
[1736425603853,0.01094504,93760.0,93757.0,0.213317]
[1736425604058,8.53e-05,93766.0,93757.0,0.213317]
[1736425604307,0.0829,93781.0,93757.0,0.213317]
[1736425604508,0.22008941,93780.0,93757.0,0.213317]
[1736425604954,0.213291,93769.0,93757.0,0.213317]
[1736425605478,0.213299,93765.0,93757.0,0.001]
[1736425605682,0.213299,93765.0,93755.0,0.220921]
[1736425606219,0.213291,93769.0,93755.0,0.220921]
[1736425606428,0.213291,93769.0,93755.0,0.434242]
[1736425606632,0.213291,93769.0,93756.0,0.213319]
[1736425607055,0.213291,93769.0,93757.0,0.001]
[1736425607312,0.213291,93769.0,93755.0,0.220921]
[1736425607313,0.426582,93769.0,93755.0,0.220921]
[1736425607520,0.213294,93767.0,93755.0,0.220921]
[1736425607699,0.213294,93767.0,93755.0,0.435242]
[1736425607898,0.213294,93767.0,93755.0,0.434242]
[1736425608407,0.213294,93767.0,93758.0,0.213313]
[1736425608961,0.0668585,93766.0,93757.0,0.001]
[1736425609163,0.213305,93763.0,93757.0,0.001]
[1736425610053,0.21403195,93763.0,93757.0,0.001]
[1736425610265,0.21403195,93763.0,93755.0,0.0076]
[1736425610266,0.213305,93763.0,93755.0,0.0076]
[1736425610490,0.213305,93763.0,93755.0,0.0086]
[1736425610972,0.213305,93763.0,93751.0,0.213329]
[1736425611417,0.220305,93763.0,93757.0,0.001]
[1736425611696,0.215305,93763.0,93755.0,0.213321]
[1736425611890,0.009,93763.0,93755.0,0.214321]
[1736425612548,0.007,93763.0,93755.0,0.214321]
[1736425612966,0.236298,93766.0,93755.0,0.213321]
[1736425614109,0.002,93763.0,93755.0,0.213321]
[1736425614484,0.213298,93766.0,93755.0,0.213321]
[1736425615030,0.213309,93761.0,93751.0,0.220929]
[1736425615456,0.213299,93765.0,93754.0,0.213322]
[1736425615662,0.007,93763.0,93754.0,0.213322]
[1736425615871,0.213299,93765.0,93754.0,0.213322]
[1736425616265,0.213299,93765.0,93755.0,0.001]
[1736425616686,0.213299,93765.0,93756.0,0.213319]
[1736425617157,0.213309,93761.0,93755.0,0.001]
[1736425617369,0.215309,93761.0,93755.0,0.001]
[1736425617591,0.002,93761.0,93752.0,0.220928]
[1736425617780,0.213307,93762.0,93752.0,0.220928]
[1736425618085,0.007,93763.0,93755.0,0.213321]
[1736425618306,0.007,93763.0,93752.0,0.220928]
[1736425618307,0.01120908,93769.0,93756.0,0.22519976]
[1736425618511,0.09589409,93775.0,93770.0,0.0751]
[1736425618724,0.09589409,93775.0,93774.0,0.484178]
[1736425618725,0.04589409,93775.0,93774.0,0.484178]
[1736425618986,0.09598005,93777.0,93776.0,0.1]
[1736425619193,0.09598005,93777.0,93776.0,0.46359015]
[1736425619360,0.09598005,93777.0,93776.0,0.67579698]
[1736425620186,8.52e-05,93819.0,93793.0,0.213235]
[1736425620585,0.00023475,93794.0,93793.0,0.213235]
[1736425621160,0.00023475,93794.0,93793.0,0.31753476]
[1736425621363,0.00123475,93794.0,93793.0,0.32653476]
[1736425621603,0.00123475,93794.0,93793.0,0.41293476]
[1736425629328,0.00123475,93794.0,93793.0,0.78783476]
[1736425629472,0.00123475,93794.0,93793.0,0.93783476]
[1736425630498,0.00123475,93794.0,93793.0,0.93383476]
[1736425630724,0.00123475,93794.0,93793.0,0.94143476]
[1736425630927,0.00123475,93794.0,93793.0,1.139158]
[1736425631279,0.00123475,93794.0,93793.0,1.13762091]
[1736425631491,0.00123475,93794.0,93793.0,0.79139476]
[1736425631704,0.00023475,93794.0,93793.0,0.78939476]
[1736425631917,0.00023475,93794.0,93793.0,0.74173476]
[1736425632132,0.00023475,93794.0,93793.0,0.65933476]
[1736425632335,0.00023475,93794.0,93793.0,0.553595]
[1736425632540,0.00023475,93794.0,93793.0,0.562595]
[1736425632749,0.00023475,93794.0,93793.0,0.236795]
[1736425632951,0.00023475,93794.0,93793.0,0.227795]
[1736425633151,0.00023475,93794.0,93793.0,0.233795]
[1736425633400,0.00023475,93794.0,93793.0,0.226235]
[1736425633605,0.00023475,93794.0,93793.0,0.227795]
[1736425633781,0.00023475,93794.0,93793.0,0.220795]
[1736425634187,0.00023475,93794.0,93793.0,0.229795]
[1736425634599,0.00023475,93794.0,93793.0,0.220795]
[1736425635000,0.00023475,93794.0,93793.0,0.233795]
[1736425635203,0.00023475,93794.0,93793.0,0.224795]
[1736425635684,0.00023475,93794.0,93793.0,0.233795]
[1736425636320,0.00023475,93794.0,93793.0,0.220795]
[1736425636754,0.00023475,93794.0,93793.0,0.235795]
[1736425637157,0.00023475,93794.0,93793.0,0.229795]
[1736425637569,0.00023475,93794.0,93793.0,0.235795]
[1736425640612,0.00023475,93794.0,93793.0,0.015]
[1736425640810,0.00023475,93794.0,93793.0,0.02256]
[1736425642352,0.00023475,93794.0,93793.0,0.01356]
[1736425642553,0.00023475,93794.0,93782.0,0.3258]
[1736425642782,0.10494189,93792.0,93791.0,0.00756]
[1736425642983,0.10494189,93792.0,93782.0,0.3258]
[1736425642984,0.213258,93783.0,93773.0,0.213279]
[1736425643205,0.213258,93783.0,93775.0,0.213276]
[1736425643413,0.213258,93783.0,93774.0,0.00756]
[1736425644019,0.213258,93783.0,93782.0,0.001]
[1736425644469,0.21325,93787.0,93775.0,0.213274]
[1736425644709,0.21325,93787.0,93776.0,0.213274]
[1736425646353,0.21325,93787.0,93776.0,0.215274]
[1736425646616,0.21325,93787.0,93776.0,0.213274]
[1736425647053,0.21325,93787.0,93776.0,0.215274]
[1736425647255,0.21325,93787.0,93776.0,0.217274]
[1736425647602,0.23062118,93787.0,93776.0,0.217274]
[1736425648017,0.23062118,93787.0,93776.0,0.215274]
[1736425648633,0.23062118,93787.0,93776.0,0.002]
[1736425648838,0.23062118,93787.0,93776.0,0.004]
[1736425649043,0.23062118,93787.0,93776.0,0.002]
[1736425649282,0.23062118,93787.0,93777.0,0.213271]
[1736425650879,0.23062118,93787.0,93777.0,0.215271]
[1736425651427,0.23062118,93787.0,93777.0,0.002]
[1736425652197,0.23062118,93787.0,93777.0,0.004]
[1736425653720,0.25971308,93787.0,93777.0,0.004]
[1736425653962,0.213257,93784.0,93777.0,0.004]
[1736425654179,0.213251,93786.0,93777.0,0.004]
[1736425654785,0.426502,93786.0,93777.0,0.004]
[1736425655148,0.426502,93786.0,93777.0,0.002]
[1736425655571,0.426502,93786.0,93777.0,0.006]
[1736425655926,0.426502,93786.0,93775.0,0.213275]
[1736425656058,0.426502,93786.0,93777.0,0.003]
[1736425656255,0.426502,93786.0,93777.0,0.005]
[1736425656470,0.426502,93786.0,93778.0,0.00756]
[1736425657857,0.426502,93786.0,93778.0,0.00956]
[1736425658425,0.213251,93786.0,93778.0,0.00956]
[1736425658630,0.23062118,93787.0,93778.0,0.01256]
[1736425659714,0.23062118,93787.0,93778.0,0.01056]
[1736425660064,0.23062118,93787.0,93778.0,0.01256]
[1736425660565,0.23062118,93787.0,93778.0,0.00956]
[1736425660731,0.213256,93784.0,93778.0,0.00956]
[1736425661765,0.213256,93784.0,93778.0,0.00756]
[1736425661964,0.02971153,93783.0,93778.0,0.00956]
[1736425662414,0.02971153,93783.0,93778.0,0.00756]
[1736425662861,0.02971153,93783.0,93778.0,0.01156]
[1736425663073,0.02971153,93783.0,93778.0,0.00956]
[1736425663450,0.02971153,93783.0,93778.0,0.01356]
[1736425663657,0.02971153,93783.0,93778.0,0.01156]
[1736425663883,0.01342365,93782.0,93778.0,0.01356]
[1736425664649,0.23062118,93787.0,93778.0,0.01356]
[1736425665011,0.23062118,93787.0,93778.0,0.01156]
[1736425666351,0.23062118,93787.0,93778.0,0.01456]
[1736425666581,0.23062018,93787.0,93778.0,0.01056]
[1736425666735,0.23062018,93787.0,93778.0,0.01156]
[1736425667117,0.213257,93784.0,93778.0,0.00956]
[1736425667335,0.213257,93784.0,93778.0,0.01156]
[1736425668208,0.213257,93784.0,93778.0,0.00956]
[1736425668847,0.213257,93784.0,93778.0,0.00756]
[1736425669101,0.23062018,93787.0,93778.0,0.00756]
[1736425669327,0.23062018,93787.0,93778.0,0.01156]
[1736425669502,0.23062018,93787.0,93778.0,0.01356]
[1736425669982,0.23062018,93787.0,93778.0,0.00956]
[1736425670230,0.23062018,93787.0,93778.0,0.00756]
[1736425670480,0.01737118,93787.0,93779.0,0.0756]
[1736425670753,0.023,93788.0,93779.0,0.0756]
[1736425671492,0.213249,93787.0,93780.0,0.00756]
[1736425671676,0.23689697,93787.0,93780.0,0.00756]
[1736425671911,0.213249,93787.0,93780.0,0.00756]
[1736425672129,0.213257,93784.0,93780.0,0.00756]
[1736425673482,0.213257,93784.0,93780.0,0.01156]
[1736425673664,0.213257,93784.0,93780.0,0.01356]
[1736425673961,0.213249,93787.0,93780.0,0.01356]
[1736425674559,0.0171703,93789.0,93780.0,0.01356]
[1736425674738,0.15023475,93794.0,93785.0,0.213252]
[1736425675086,0.15023475,93794.0,93781.0,0.0491]
[1736425675087,0.00023475,93794.0,93790.0,0.213241]
[1736425675240,0.00023475,93794.0,93791.0,0.0791]
[1736425675442,0.00023475,93794.0,93792.0,0.213237]
[1736425675969,0.00023475,93794.0,93793.0,0.10536584]
[1736425676132,0.00023475,93794.0,93793.0,0.23196584]
[1736425676331,0.00023475,93794.0,93793.0,0.23089976]
[1736425678506,0.00023475,93794.0,93793.0,0.429623]
[1736425678743,0.00023475,93794.0,93793.0,0.31632324]
[1736425678921,0.00023475,93794.0,93793.0,0.32388324]
[1736425679073,0.00023475,93794.0,93793.0,0.33288324]
[1736425679278,0.00023475,93794.0,93793.0,0.32388324]
[1736425679502,0.00023475,93794.0,93793.0,0.32888324]
[1736425679740,0.00023475,93794.0,93793.0,0.33788324]
[1736425679935,0.00023475,93794.0,93793.0,0.13416]
[1736425680097,0.00023475,93794.0,93793.0,0.13816]
[1736425680450,0.00023475,93794.0,93793.0,0.14716]
[1736425680681,0.00023475,93794.0,93793.0,0.14316]
[1736425680994,0.00023475,93794.0,93793.0,0.14816]
[1736425681581,0.00023475,93794.0,93793.0,0.13916]
[1736425682058,0.00023475,93794.0,93793.0,0.14816]
[1736425682217,0.00023475,93794.0,93793.0,0.13916]
[1736425682622,0.00023475,93794.0,93793.0,0.14816]
[1736425682966,0.00023475,93794.0,93793.0,0.13416]
[1736425683118,0.00023475,93794.0,93793.0,0.13916]
[1736425683337,0.00023475,93794.0,93793.0,0.14616]
[1736425683544,0.00023475,93794.0,93793.0,0.13916]
[1736425683751,0.00023475,93794.0,93793.0,0.13416]
[1736425684095,0.21346775,93794.0,93793.0,0.004]
[1736425684472,0.21346775,93794.0,93788.0,0.00756]
[1736425684672,0.02009492,93794.0,93788.0,0.00756]
[1736425684826,0.00023475,93794.0,93775.0,0.26662324]
[1736425685029,0.10494189,93792.0,93782.0,0.33336]
[1736425685233,0.213244,93790.0,93782.0,0.33336]
[1736425685633,0.213244,93790.0,93788.0,0.007]
[1736425685975,0.213244,93790.0,93782.0,0.33336]
[1736425686400,0.023,93789.0,93775.0,0.0769]
[1736425686616,0.213255,93785.0,93769.0,0.293489]
[1736425686827,0.10494189,93780.0,93770.0,0.220847]
[1736425686999,0.42651,93785.0,93782.0,0.001]
[1736425687000,0.213255,93785.0,93782.0,0.001]
[1736425687197,0.213255,93785.0,93782.0,0.005]
[1736425687617,0.213255,93785.0,93782.0,0.001]
[1736425688225,0.213255,93785.0,93773.0,0.213279]
[1736425688583,0.213255,93785.0,93775.0,0.002]